bitfinex-derivatives/quotes_BNBF0:USTF0_20250326
["timestamp","ask_amount","ask_price","bid_price","bid_amount"]
[1742950747849,0.824,630.12,629.94,1.18411583]
[1742950752955,0.824,630.12,629.97,1.18411583]
[1742950754660,0.824,630.12,629.94,1.18411583]
[1742950756763,0.824,630.12,629.95,1.18411583]
[1742950757462,1.516,630.25,629.95,1.18411583]
[1742950758861,1.516,630.25,629.93,1.18411583]
[1742950761462,1.516,630.25,629.94,1.18411583]
[1742950761859,1.516,630.25,629.94,0.00011583]
[1742950763765,1.516,630.25,629.73,0.27200015]
[1742950763965,1.516,630.25,629.72,0.27200015]
[1742950764163,1.516,630.25,629.74,0.27200015]
[1742950764360,1.516,630.25,629.75,0.27200015]
[1742950764565,1.516,630.25,629.71,1.185948]
[1742950764766,1.516,630.25,629.72,0.27200948]
[1742950766066,1.516,630.25,629.71,1.185948]
[1742950766262,1.516,630.25,629.72,0.27198863]
[1742950766766,1.516,630.25,629.73,0.27198863]
[1742950766965,1.516,630.25,629.74,0.27198863]
[1742950767168,1.516,630.25,629.68,0.27198863]
[1742950767368,1.516,630.25,629.69,0.27198863]
[1742950767565,1.516,630.25,629.68,0.27198863]
[1742950767868,1.516,630.25,629.69,0.27198863]
[1742950768068,1.516,630.25,629.68,0.27198863]
[1742950768271,1.516,630.25,629.69,0.27198863]
[1742950768272,0.449,630.25,629.69,0.27198863]
[1742950768471,0.449,630.25,629.7,0.27198863]
[1742950768666,0.449,630.25,629.71,0.27198863]
[1742950768865,0.449,630.25,629.72,0.27198863]
[1742950769063,0.449,630.25,629.68,0.27198863]
[1742950769264,0.449,630.25,629.73,0.27198863]
[1742950769569,0.449,630.25,629.74,0.27198863]
[1742950769768,0.449,630.25,629.75,0.27198863]
[1742950769969,0.449,630.25,629.76,0.27198863]
[1742950770170,0.449,630.25,629.77,0.27198863]
[1742950770366,0.449,630.25,629.68,0.27198863]
[1742950770571,0.449,630.25,629.69,0.27198863]
[1742950770769,0.449,630.25,629.67,1.185948]
[1742950770965,0.449,630.25,629.68,0.27185947]
[1742950770966,0.967,630.24,629.68,0.27185947]
[1742950771170,0.967,630.24,629.69,1.45777631]
[1742950771367,0.967,630.24,629.7,0.27182831]
[1742950773870,0.967,630.24,629.69,0.27182831]
[1742950776275,0.967,630.24,629.7,1.185948]
[1742950776475,0.967,630.24,629.71,0.27182831]
[1742950777178,0.967,630.24,629.72,0.27181559]
[1742950777377,0.967,630.24,629.73,0.27181559]
[1742950777671,0.967,630.24,629.74,0.27181559]
[1742950777877,0.967,630.24,629.75,0.27181559]
[1742950778076,0.967,630.24,629.77,1.185948]
[1742950778377,0.967,630.24,629.78,0.27181559]
[1742950780072,0.967,630.24,629.77,1.185948]
[1742950780278,0.967,630.24,629.78,0.27180804]
[1742950780677,0.967,630.24,629.79,0.27180804]
[1742950780977,0.967,630.24,629.8,0.27180804]
[1742950781279,0.967,630.24,629.81,0.27180804]
[1742950781478,0.967,630.24,629.74,0.27180804]
[1742950781779,0.967,630.24,629.75,0.27181537]
[1742950781974,0.449,630.23,629.76,0.27181537]
[1742950782178,0.449,630.23,629.77,0.27181537]
[1742950782374,0.449,630.23,629.76,1.185948]
[1742950782577,0.449,630.23,629.77,0.27181537]
[1742950782978,0.449,630.23,629.76,1.185948]
[1742950783174,0.449,630.23,629.77,0.27181752]
[1742950784581,0.449,630.23,629.78,0.27181752]
[1742950784779,0.449,630.23,629.73,0.27611706]
[1742950784780,0.449,630.23,629.74,0.27181752]
[1742950784981,0.449,630.23,629.75,0.27181752]
[1742950785280,0.449,630.23,629.69,1.185948]
[1742950785281,0.449,630.23,629.76,0.27181752]
[1742950785481,0.449,630.23,629.75,0.27181752]
[1742950785673,0.449,630.23,629.76,0.27181752]
[1742950785878,0.449,630.23,629.77,0.27181752]
[1742950786078,0.449,630.23,629.75,0.27181752]
[1742950786280,0.449,630.23,629.76,0.27181752]
[1742950786582,0.449,630.23,629.77,0.27189558]
[1742950786880,0.449,630.23,629.78,0.27189558]
[1742950787083,0.449,630.23,629.79,0.27189558]
[1742950787277,0.449,630.23,629.8,0.27189558]
[1742950787481,0.449,630.23,629.75,0.27189558]
[1742950787680,0.449,630.23,629.76,0.27189558]
[1742950787880,0.449,630.23,629.75,0.27189558]
[1742950788080,0.449,630.23,629.76,0.2718911]
[1742950788279,0.449,630.23,629.77,0.2718911]
[1742950788485,0.449,630.23,629.78,0.2718911]
[1742950788683,0.449,630.23,629.72,0.2718911]
[1742950788879,0.449,630.23,629.73,0.2718911]
[1742950789079,0.449,630.23,629.72,0.2718911]
[1742950789280,0.449,630.23,629.73,0.2718911]
[1742950789478,0.449,630.23,629.71,0.27614226]
[1742950789680,0.449,630.23,629.72,0.27188785]
[1742950791082,0.449,630.23,629.61,0.27188785]
[1742950791285,0.449,630.23,629.62,0.27188785]
[1742950791486,0.449,630.23,629.61,0.27188785]
[1742950791687,0.449,630.23,629.62,0.27188785]
[1742950791886,0.449,630.23,629.63,0.27188785]
[1742950792186,0.449,630.23,629.64,0.27188785]
[1742950792686,0.449,630.23,629.65,0.27188705]
[1742950792987,0.449,630.23,629.66,0.27188705]
[1742950793287,0.449,630.23,629.67,0.27188705]
[1742950793480,0.449,630.23,629.68,0.27188705]
[1742950793686,0.449,630.23,629.69,0.27188705]
[1742950793985,0.449,630.23,629.7,0.27188705]
[1742950794186,0.449,630.23,629.62,1.185948]
[1742950794387,0.449,630.23,629.63,0.27188852]
[1742950794788,0.449,630.23,629.65,1.185948]
[1742950794988,0.449,630.23,629.66,0.27188852]
[1742950795786,0.449,630.23,629.67,0.27188055]
[1742950796089,0.2759813,630.66,629.68,0.27188055]
[1742950796283,0.2759813,630.66,629.66,0.27188055]
[1742950796487,0.2759813,630.66,629.67,0.27188055]
[1742950796688,0.746,630.65,629.65,0.27188055]
[1742950796888,0.746,630.65,629.66,0.27188055]
[1742950797083,0.746,630.65,629.67,0.27188055]
[1742950797287,0.746,630.65,629.65,0.27188055]
[1742950797485,0.746,630.65,629.66,0.27188055]
[1742950797685,0.746,630.65,629.65,0.27188055]
[1742950797888,0.746,630.65,629.66,0.27188055]
[1742950798087,0.746,630.65,629.65,0.27188055]
[1742950798289,0.746,630.65,629.64,1.46204425]
[1742950798290,0.746,630.65,629.72,1.185948]
[1742950798486,0.746,630.65,629.73,0.27188055]
[1742950799992,0.448,630.64,629.73,0.27188055]
[1742950800390,0.448,630.64,629.72,1.185948]
[1742950800586,0.448,630.64,629.88,1.185948]
[1742950800791,0.448,630.64,629.89,0.27188547]
[1742950801596,0.448,630.64,629.9,0.27189235]
[1742950801892,0.448,630.64,629.88,1.185948]
[1742950802096,0.448,630.64,629.89,0.27189501]
[1742950802893,0.448,630.64,629.88,1.185948]
[1742950805797,0.448,630.64,629.77,1.185948]
[1742950805997,0.448,630.64,629.78,0.2719413]
[1742950806199,0.448,630.64,629.79,0.27194208]
[1742950806399,0.448,630.64,629.78,0.27194208]
[1742950806698,0.448,630.64,629.79,0.27194208]
[1742950806895,0.448,630.64,629.8,0.27194208]
[1742950807098,0.7240864,630.64,629.78,0.27194208]
[1742950807297,0.7240864,630.64,629.79,0.27194208]
[1742950807497,0.7240864,630.64,629.78,0.27194208]
[1742950807699,0.7240864,630.64,629.79,0.27194208]
[1742950807896,0.7240864,630.64,629.8,0.27194208]
[1742950808093,0.7240864,630.64,629.81,0.27194208]
[1742950808295,0.7240864,630.64,629.78,0.27194208]
[1742950808601,0.7240864,630.64,629.79,0.27193424]
[1742950808797,0.448,630.64,629.79,0.27193424]
[1742950809006,0.448,630.64,629.8,0.27193424]
[1742950809203,0.448,630.64,629.67,0.27193424]
[1742950810309,0.27610282,630.63,629.67,0.54803706]
[1742950810508,0.27610282,630.63,629.68,0.27193424]
[1742950810710,0.27610282,630.63,629.67,0.27610282]
[1742950810910,0.27610282,630.63,629.68,0.27196648]
[1742950811312,0.27610282,630.63,629.69,0.27197432]
[1742950811510,0.27610282,630.63,629.68,0.27197432]
[1742950811709,0.27610282,630.63,629.69,0.27197432]
[1742950812011,0.27610282,630.63,629.7,0.27197432]
[1742950812206,0.27610282,630.63,629.68,0.27197432]
[1742950812409,0.27610282,630.63,629.69,0.27197432]
[1742950812608,0.27610282,630.63,629.7,0.2719777]
[1742950812811,0.27610282,630.63,629.68,0.2719777]
[1742950813006,0.27610282,630.63,629.69,0.2719777]
[1742950813213,0.27610282,630.63,629.7,0.2719777]
[1742950813407,0.27610282,630.63,629.71,0.2719777]
[1742950813612,0.27610282,630.63,629.72,0.2719777]
[1742950813813,0.27610282,630.63,629.68,0.2719777]
[1742950814010,0.27610282,630.63,629.73,0.2719777]
[1742950814314,0.27610282,630.63,629.74,0.2719777]
[1742950814513,0.27610282,630.63,629.68,0.2719777]
[1742950814714,0.27610282,630.63,629.69,0.2719777]
[1742950814913,0.746,630.65,629.7,0.2719777]
[1742950815114,0.746,630.65,629.62,0.2719777]
[1742950815315,0.746,630.65,629.63,0.2719777]
[1742950815516,0.746,630.65,629.61,1.185948]
[1742950815517,0.746,630.65,629.62,0.2719777]
[1742950815711,0.448,630.64,629.63,0.2719777]
[1742950816014,0.448,630.64,629.64,0.2719777]
[1742950816211,0.2761083,630.63,629.64,0.2761083]
[1742950816515,0.2761083,630.63,629.65,0.2719777]
[1742950816916,0.2761083,630.63,629.75,1.185948]
[1742950817113,0.2761083,630.63,629.76,0.2719777]
[1742950817313,0.2761083,630.63,629.77,0.27199509]
[1742950817511,0.2761083,630.63,629.78,0.27199509]
[1742950817709,0.2761083,630.63,629.79,0.27199509]
[1742950817911,0.448,630.64,629.8,0.27199509]
[1742950818111,0.27609406,630.62,629.81,0.27199509]
[1742950818310,0.27609406,630.62,629.76,0.27199509]
[1742950818511,0.27609406,630.62,629.77,0.27199509]
[1742950818715,0.27609406,630.62,629.76,0.27199509]
[1742950818918,0.27609406,630.62,629.76,1.45794309]
[1742950819116,0.27609406,630.62,629.77,0.27199509]
[1742950820511,0.27609406,630.62,629.78,0.27211284]
[1742950820714,0.448,630.64,629.78,0.27211284]
[1742950821115,0.27610063,630.61,629.78,0.27211284]
[1742950823511,0.27610063,630.61,629.79,0.27210967]
[1742950823717,0.448,630.64,629.8,0.27210967]
[1742950823920,0.448,630.64,629.78,0.27210967]
[1742950824117,0.27610063,630.6,629.79,0.27210967]
[1742950824317,0.27610063,630.6,629.73,0.27210967]
[1742950824516,0.27610063,630.6,629.74,0.27210967]
[1742950824716,0.27610063,630.6,629.75,0.27210967]
[1742950824913,0.27610063,630.6,629.76,0.27210967]
[1742950825218,0.27610063,630.6,629.77,0.27209349]
[1742950825412,0.27610063,630.6,629.78,0.27209349]
[1742950825616,0.27610063,630.6,629.73,0.27209349]
[1742950825817,0.932,630.59,629.74,0.27209349]
[1742950826017,0.932,630.59,629.73,0.27209349]
[1742950826212,0.932,630.59,629.74,0.27209349]
[1742950826416,0.932,630.59,629.75,0.27209349]
[1742950826616,0.932,630.59,629.71,1.185948]
[1742950826817,0.932,630.59,629.72,0.27209705]
[1742950830623,0.932,630.59,629.72,1.45804505]
[1742950830922,0.932,630.59,629.73,0.27209705]
[1742950831116,0.27611159,630.58,629.73,0.27209705]
[1742950831320,0.27611159,630.58,629.74,0.27208917]
[1742950831623,0.27611159,630.58,629.75,0.27208917]
[1742950831822,0.27611159,630.58,629.76,0.27208917]
[1742950832022,0.27611159,630.58,629.73,0.27208917]
[1742950832222,0.27611159,630.58,629.74,0.27208917]
[1742950832522,0.27611159,630.58,629.75,0.27208917]
[1742950832722,0.27611159,630.58,629.72,1.185948]
[1742950832723,0.27611159,630.58,629.73,0.27208917]
[1742950832919,0.932,630.59,629.76,1.185948]
[1742950833118,0.27611159,630.58,629.77,0.27208417]
[1742950834625,0.27611159,630.58,629.78,0.27208287]
[1742950834825,0.27611159,630.58,629.8,1.185948]
[1742950835021,0.27611159,630.58,629.81,0.27208287]
[1742950836020,0.27611159,630.58,629.82,0.2720854]
[1742950836222,0.27611159,630.58,629.83,0.2720854]
[1742950836421,0.27611159,630.58,629.84,0.2720854]
[1742950836623,0.27611159,630.58,629.81,0.2720854]
[1742950836819,0.27611159,630.58,629.82,0.2720854]
[1742950837020,0.27611159,630.58,629.83,0.2720854]
[1742950837225,0.27611159,630.58,629.84,0.2720854]
[1742950837425,0.27611159,630.58,629.73,0.2720854]
[1742950837623,0.27611159,630.58,629.74,0.27208157]
[1742950837825,0.27611159,630.58,629.73,0.27208157]
[1742950838025,0.27611159,630.58,629.74,0.27208157]
[1742950838327,0.27611159,630.58,629.75,0.27208157]
[1742950838629,0.27611159,630.58,629.76,0.27208157]
[1742950838826,0.27611159,630.58,629.73,0.27208157]
[1742950839025,0.27611159,630.58,629.74,0.27208157]
[1742950839226,0.27611159,630.58,629.73,0.27208157]
[1742950840128,0.27611159,630.58,629.74,1.185948]
[1742950840423,0.27611159,630.58,629.75,0.27208157]
[1742950840623,0.27611159,630.58,629.74,1.185948]
[1742950840824,0.27611159,630.58,629.75,0.27204685]
[1742950841728,0.932,630.59,629.76,0.27204685]
[1742950841928,0.448,630.58,629.71,0.27204685]
[1742950842129,0.448,630.58,629.72,0.27204685]
[1742950842328,0.448,630.58,629.73,0.2720446]
[1742950842629,0.448,630.58,629.74,0.2720446]
[1742950842823,0.448,630.58,629.71,0.2720446]
[1742950843128,0.448,630.58,629.7,1.185948]
[1742950843932,0.448,630.58,629.71,1.185948]
[1742950845331,0.448,630.58,629.71,1.45799269]
[1742950845530,0.448,630.58,629.72,0.27204469]
[1742950846333,0.448,630.58,629.73,1.185948]
[1742950846531,0.448,630.58,629.74,0.27204469]
[1742950847334,0.448,630.58,629.73,1.185948]
[1742950847530,0.448,630.58,629.74,0.27205537]
[1742950848838,0.448,630.58,629.68,0.27205537]
[1742950849038,0.448,630.58,629.69,0.27205636]
[1742950849238,0.448,630.58,629.7,0.27205636]
[1742950849432,0.448,630.58,629.68,0.27205636]
[1742950849631,0.448,630.58,629.69,0.27205636]
[1742950849830,0.448,630.58,629.7,0.27205636]
[1742950850037,0.448,630.58,629.71,0.27205636]
[1742950850341,0.448,630.58,629.72,0.27205636]
[1742950850531,0.448,630.58,629.69,0.27205636]
[1742950850734,0.448,630.58,629.7,0.27205636]
[1742950850936,0.448,630.58,629.71,0.27205636]
[1742950851138,0.448,630.58,629.68,1.185948]
[1742950851338,0.448,630.58,629.69,0.27206013]
[1742950852341,0.448,630.58,629.69,1.45800813]
[1742950852532,0.448,630.58,629.7,0.27206013]
[1742950853532,0.448,630.58,629.69,1.185948]
[1742950853738,0.448,630.58,629.7,0.27206047]
[1742950855142,0.448,630.58,629.69,1.185948]
[1742950855342,0.448,630.58,629.7,0.27206502]
[1742950857335,1.342,630.58,629.7,0.27206502]
[1742950857741,1.342,630.58,629.84,1.185948]
[1742950858044,1.342,630.58,629.85,0.27206502]
[1742950859945,1.342,630.58,629.86,0.27206126]
[1742950860142,1.342,630.58,629.87,0.27206126]
[1742950860346,1.342,630.58,629.88,0.27206126]
[1742950860648,1.342,630.58,629.89,0.27206126]
[1742950860845,1.342,630.58,629.84,0.27206126]
[1742950861146,0.272,629.88,629.85,0.27205883]
[1742950861449,0.272,629.88,629.86,0.27205883]
[1742950861747,0.272,629.88,629.87,0.27205883]
[1742950861945,0.272,629.88,629.84,0.27205883]
[1742950862146,0.272,629.88,629.85,0.27205883]
[1742950862346,0.272,629.88,629.86,0.27205883]
[1742950862544,0.272,629.88,629.87,0.27205883]
[1742950864148,0.272,629.88,629.87,0.27209207]
[1742950864447,0.272,629.88,629.85,0.27209207]
[1742950864648,0.272,629.88,629.86,0.27209207]
[1742950864845,0.272,629.88,629.87,0.27209207]
[1742950865049,0.272,629.88,629.8,0.27209033]
[1742950865246,1.342,630.58,629.79,1.185948]
[1742950865445,1.342,630.58,629.8,0.27209024]
[1742950866951,1.342,630.58,629.82,1.185948]
[1742950867453,1.342,630.58,629.83,0.27211706]
[1742950870348,1.342,630.58,629.82,1.185948]
[1742950870549,1.342,630.58,629.83,0.27212585]
[1742950870751,1.342,630.58,629.82,1.185948]
[1742950871458,1.342,630.58,629.81,1.185948]
[1742950873853,1.342,630.58,629.76,1.185948]
[1742950874152,1.342,630.58,629.77,0.27214494]
[1742950876650,1.342,630.58,629.78,0.27214494]
[1742950876856,1.342,630.58,629.71,0.27214494]
[1742950877056,1.342,630.58,629.72,0.27214494]
[1742950877254,1.342,630.58,629.71,0.27214494]
[1742950877558,1.342,630.58,629.72,0.27214494]
[1742950877759,1.342,630.58,629.71,0.27214494]
[1742950877957,1.342,630.58,629.72,0.27214494]
[1742950878158,1.342,630.58,629.71,0.27214494]
[1742950878358,1.342,630.58,629.72,0.27214494]
[1742950878555,1.342,630.58,629.73,0.27214494]
[1742950878754,1.342,630.58,629.71,0.27214494]
[1742950878958,1.342,630.58,629.72,0.27214494]
[1742950880061,1.342,630.58,629.73,0.27212723]
[1742950880360,1.342,630.58,629.74,0.27212723]
[1742950880656,1.342,630.58,629.75,0.27212723]
[1742950880855,1.342,630.58,629.72,0.27212723]
[1742950881053,1.342,630.58,629.73,0.27212723]
[1742950881259,1.342,630.58,629.75,1.185948]
[1742950881456,1.342,630.58,629.76,0.27212723]
[1742950883468,1.342,630.58,629.93,1.18616619]
[1742950883863,1.342,630.58,629.93,0.22616619]
[1742950886473,1.342,630.58,629.93,0.00016619]
[1742950887274,1.342,630.58,629.7,0.27213812]
[1742950887673,1.342,630.58,629.69,0.27610721]
[1742950887873,1.342,630.58,629.7,0.27213454]
[1742950889375,1.342,630.58,629.71,0.27212977]
[1742950889671,1.342,630.58,629.72,0.27212977]
[1742950889875,1.342,630.58,629.73,0.27212977]
[1742950890075,1.342,630.58,629.69,0.27212977]
[1742950890276,1.342,630.58,629.7,0.27212977]
[1742950890478,1.342,630.58,629.71,0.27212977]
[1742950890777,1.342,630.58,629.72,0.27212977]
[1742950890978,1.342,630.58,629.73,0.27212977]
[1742950891180,1.342,630.58,629.74,0.27212977]
[1742950891380,1.342,630.58,629.69,0.2761094]
[1742950891681,1.342,630.58,629.7,0.27212977]
[1742950892481,1.342,630.58,629.71,0.27214455]
[1742950892682,1.342,630.58,629.7,0.27214455]
[1742950892882,1.342,630.58,629.71,0.27214455]
[1742950893084,1.342,630.58,629.7,0.27214455]
[1742950893381,1.342,630.58,629.71,0.27214455]
[1742950893577,1.342,630.58,629.72,0.27214455]
[1742950893776,1.342,630.58,629.73,0.27214455]
[1742950893978,1.342,630.58,629.74,0.27214732]
[1742950894180,1.342,630.58,629.7,0.27214732]
[1742950894382,1.342,630.58,629.71,0.27214732]
[1742950894584,1.342,630.58,629.7,0.27214732]
[1742950894884,1.342,630.58,629.69,1.46205521]
[1742950894885,1.342,630.58,629.71,1.45809532]
[1742950895085,1.342,630.58,629.72,0.27214732]
[1742950896483,1.342,630.58,629.72,1.45809532]
[1742950896679,1.342,630.58,629.73,0.27214732]
[1742950898686,1.342,630.58,629.74,0.2721252]
[1742950898882,1.342,630.58,629.75,0.2721252]
[1742950899087,1.342,630.58,629.76,0.2721252]
[1742950899290,1.342,630.58,629.77,0.2721252]
[1742950899488,1.342,630.58,629.74,0.2721252]
[1742950900084,1.342,630.58,629.73,1.185948]
[1742950900390,1.342,630.58,629.74,0.2721203]
[1742950901383,1.342,630.58,629.75,1.185948]
[1742950901586,1.342,630.58,629.76,0.2721203]
[1742950903889,1.342,630.58,629.73,1.185948]
[1742950905890,1.342,630.58,629.7,0.27610282]
[1742950906289,1.342,630.58,629.71,0.27213711]
[1742950911190,1.342,630.58,629.7,0.27612035]
[1742950911390,1.342,630.58,629.71,0.27213711]
[1742950914394,1.342,630.58,629.72,0.27221396]
[1742950914595,1.342,630.58,629.73,0.27221396]
[1742950914790,1.342,630.58,629.74,0.27221396]
[1742950914993,1.342,630.58,629.75,0.27221396]
[1742950915189,1.342,630.58,629.57,0.27221396]
[1742950915395,1.342,630.58,629.7,0.27612145]
[1742950915590,1.342,630.58,629.71,0.27221396]
[1742950915991,1.342,630.58,629.68,0.27221396]
[1742950916397,1.342,630.58,629.69,0.2761094]
[1742950916592,1.342,630.58,629.7,0.27221396]
[1742950916999,1.342,630.58,629.68,0.27221396]
[1742950917194,1.342,630.58,629.67,1.185948]
[1742950917195,1.342,630.58,629.69,0.27221396]
[1742950917399,1.342,630.58,629.68,0.27221396]
[1742950917600,1.342,630.58,629.69,0.27222874]
[1742950917795,1.342,630.58,629.68,0.27222874]
[1742950917997,1.342,630.58,629.69,0.27222874]
[1742950918196,1.342,630.58,629.69,0.2761094]
[1742950918397,1.342,630.58,629.7,0.27222874]
[1742950919100,1.342,630.58,629.69,0.2761094]
[1742950919304,1.342,630.58,629.7,0.27222236]
[1742950920194,1.342,630.58,629.68,0.27222236]
[1742950920398,1.342,630.58,629.69,0.27222236]
[1742950920595,1.342,630.58,629.67,1.185948]
[1742950920801,1.342,630.58,629.68,0.27223448]
[1742950921302,1.342,630.58,629.68,0.54834388]
[1742950921502,1.342,630.58,629.69,0.27223448]
[1742950922496,1.342,630.58,629.71,1.185948]
[1742950922700,1.342,630.58,629.72,0.27223448]
[1742950924100,1.342,630.58,629.75,1.185948]
[1742950924297,1.342,630.58,629.76,0.27223448]
[1742950926402,1.342,630.58,629.76,1.45818248]
[1742950926608,1.342,630.58,629.76,1.185948]
[1742950926904,1.342,630.58,629.77,0.27220047]
[1742950928107,1.342,630.58,629.76,1.185948]
[1742950928310,1.342,630.58,629.77,0.27226064]
[1742950928508,1.342,630.58,629.75,0.27226064]
[1742950929907,1.342,630.58,629.74,1.185948]
[1742950930103,1.342,630.58,629.75,0.27228172]
[1742950931608,1.342,630.58,629.76,0.27228087]
[1742950931809,1.342,630.58,629.75,0.27228087]
[1742950932110,1.342,630.58,629.76,0.27228087]
[1742950932309,1.342,630.58,629.77,0.27228087]
[1742950932510,1.342,630.58,629.74,0.27228087]
[1742950932710,1.342,630.58,629.75,0.27228087]
[1742950932907,1.342,630.58,629.74,0.27228087]
[1742950933107,1.342,630.58,629.73,1.46204206]
[1742950933308,1.342,630.58,629.74,0.27229238]
[1742950934610,1.342,630.58,629.76,1.185948]
[1742950934811,1.342,630.58,629.77,0.27229238]
[1742950940512,1.342,630.58,629.71,0.27229238]
[1742950940708,1.342,630.58,629.72,0.27229238]
[1742950940911,1.342,630.58,629.71,0.27229238]
[1742950943813,1.342,630.58,629.67,1.185948]
[1742950944015,1.342,630.58,629.68,0.27230735]
[1742950944219,1.342,630.58,629.7,0.2761094]
[1742950944419,1.342,630.58,629.71,0.27230735]
[1742950947018,1.342,630.58,629.67,0.27230735]
[1742950947318,1.342,630.58,629.68,0.27230735]
[1742950947519,1.342,630.58,629.67,0.27230735]
[1742950947720,1.342,630.58,629.68,0.27230735]
[1742950948319,0.27612254,630.57,629.68,0.27230735]
[1742950950028,2.57408256,631.6,629.68,0.27230735]
[1742950950225,0.31666613,631.58,629.68,0.27230735]
[1742950950429,0.29143421,631.57,629.68,0.27230735]
[1742950950629,0.31668118,631.55,629.68,0.27230735]
[1742950950824,0.29143421,631.54,629.68,0.27230735]
[1742950951028,0.31669622,631.52,629.69,0.27230735]
[1742950951228,0.29143421,631.51,629.7,0.27230735]
[1742950951427,0.31671127,631.49,629.71,0.27230735]
[1742950951630,0.29143421,631.48,629.65,0.27230735]
[1742950951832,0.31672631,631.46,629.65,0.27230735]
[1742950952029,0.29143421,631.45,629.65,0.27230735]
[1742950952325,0.31674136,631.43,629.65,0.27230735]
[1742950952530,0.29143421,631.42,629.65,0.27230735]
[1742950952732,0.31675641,631.4,629.65,0.27230735]
[1742950952926,0.29143421,631.39,629.65,0.27230735]
[1742950953126,0.31677146,631.37,629.62,0.27230735]
[1742950953332,0.29143421,631.36,629.63,0.27230735]
[1742950953526,0.31678651,631.34,629.59,0.27230735]
[1742950953729,0.31678651,631.34,629.58,1.185948]
[1742950953930,0.29143165,631.33,629.59,0.27236012]
[1742950954127,0.31680157,631.31,629.59,0.27236012]
[1742950954327,0.29143165,631.3,629.59,0.54839177]
[1742950954530,0.29143165,631.3,629.6,0.27236012]
[1742950954531,0.31681662,631.28,629.6,0.27236012]
[1742950954732,0.29143165,631.27,629.6,0.27236012]
[1742950955031,0.31683168,631.25,629.6,0.27236012]
[1742950955227,0.29143165,631.24,629.6,0.27236012]
[1742950955734,0.31684674,631.22,629.6,0.27236012]
[1742950955934,0.29143165,631.21,629.6,0.27236012]
[1742950956230,0.3168618,631.19,629.61,0.27236012]
[1742950956435,0.29143165,631.18,629.61,0.27236012]
[1742950956631,0.31687686,631.16,629.61,0.27236012]
[1742950956930,0.29143165,631.15,629.61,0.27236012]
[1742950957134,0.31689192,631.13,629.61,0.27236012]
[1742950957336,0.29143165,631.12,629.61,0.27236012]
[1742950957637,0.31690698,631.1,629.61,0.27236012]
[1742950957838,0.29143165,631.09,629.61,0.27236012]
[1742950958034,0.31692205,631.07,629.61,0.27236012]
[1742950958230,0.29143165,631.06,629.61,0.27236012]
[1742950958434,0.31693711,631.04,629.6,1.185948]
[1742950958634,0.29143101,631.03,629.61,0.2723604]
[1742950958830,0.31695218,631.01,629.61,1.4583084]
[1742950959138,0.29143101,631.0,629.62,0.2723604]
[1742950959336,0.31696725,630.98,629.62,0.2723604]
[1742950959530,0.29143101,630.97,629.62,0.2723604]
[1742950959836,0.31698232,630.95,629.62,0.2723604]
[1742950960138,0.31698232,630.95,629.63,0.27235792]
[1742950960338,0.31698232,630.95,629.64,0.27235792]
[1742950960536,0.31698232,630.95,629.65,0.27235792]
[1742950960737,0.31698232,630.95,629.66,0.27235792]
[1742950960938,0.31698232,630.95,629.62,0.27235792]
[1742950961137,0.31698232,630.95,629.63,0.27235792]
[1742950961337,0.29143059,630.94,629.62,0.27235792]
[1742950961638,0.2760853,630.96,629.6,1.4620333]
[1742950961639,0.3169974,630.92,629.6,1.4620333]
[1742950961839,0.3169974,630.92,629.61,0.2723615]
[1742950963239,0.27602946,630.91,629.61,0.2723615]
[1742950963439,0.31700744,630.9,629.61,0.2723615]
[1742950964243,0.31700744,630.9,629.61,1.4583095]
[1742950964444,0.31700744,630.9,629.62,0.2723615]
[1742950964844,0.31700744,630.9,629.61,1.185948]
[1742950965146,0.31700744,630.9,629.62,0.27235506]
[1742950965944,0.31700744,630.9,629.61,1.185948]
[1742950966145,0.27602727,630.89,629.61,1.46197527]
[1742950966339,0.31701749,630.88,629.61,1.46197527]